Cogmind - Beta 15 @@@ ROGUE MODE // 2025.10.16 @ 14:53:25 Player: cart Result: Heading to fleet! Performance ------------- Evolutions (9) 4500 Regions Visited (24) 4800 Robots Destroyed (172) 860 Value Destroyed (8612) 8612 Prototype IDs (78) 1560 Alien Tech Used (3) 600 Bonus (12951) 12951 TOTAL SCORE: 33883 Bonus ------- High Alert Combat Kills 258 Follower Combat Kills 1996 Network Hubs Disabled 200 Registered with UFD 300 Met Data Miner 300 Met Warlord at Base 500 MAIN.C Attacked Warlord 500 Warlord Defense Kills 100 Built Enhanced Grunts 300 A7 Reached Mainframe 300 Met R17 at Cetus 500 Used Core Reset Matrix 3000 Met R17 at Research 2000 Win 3000 Friendly Fire -303 Cogmind --------- Core Integrity 1452/1600 Matter 162/300 Energy 919/940 System Corruption 0% Temperature Cool (20) Movement Treading (163) Location To Fleet Rendezvous Parts ------- > --- POWER (4) -------- Heavy Antimatter Reactor Vortex Chain Reactor > --- PROPULSION (6) --- Armored Heavy Treads Advanced Heavy Siege Treads Advanced Heavy Siege Treads > --- UTILITY (12) ----- Huge Storage Unit Advanced Sensor Array Advanced Signal Interpreter Long-range Terrain Scanner Experimental Terrain Scan Processor Experimental Targeting Computer Core Analyzer Experimental Transmission Jammer Graphene Brace > --- WEAPON (4) ------- Long-range Phase Cannon Cooled Nova Cannon Advanced KE Penetrator > --- INVENTORY (25) --- Advanced Heavy Treads Biometal Heavy Treads Huge Storage Unit Advanced Energy Well (500) Matter Compressor (250) Spectral Analyzer Experimental Transmission Jammer Advanced Point Defense System Long-range Tractor Beam Power Bank Transdimensional Reconstructor Subatomic Replicator Improved Arc Projector Vortex Driver (30) Vortex Driver (30) Null Cannon Hypervelocity Multirail Enhanced Hardcell Cannon Omega Cannon Heavy Proton Missile Launcher Peak State ------------ > --- POWER ------------ Heavy Antimatter Reactor Particle Reactor Vortex Chain Reactor > --- PROPULSION ------- Armored Heavy Treads Advanced Heavy Siege Treads Advanced Heavy Siege Treads > --- UTILITY ---------- Experimental Cooling System Huge Storage Unit Advanced Sensor Array Advanced Signal Interpreter Long-range Terrain Scanner Experimental Terrain Scan Processor Experimental Targeting Computer Core Analyzer Experimental Transmission Jammer Centrium Heavy Armor Plating Graphene Brace > --- WEAPON ----------- Long-range Phase Cannon Cooled Nova Cannon Advanced KE Penetrator Helical Railgun > --- INVENTORY -------- Advanced Heavy Treads Biometal Heavy Treads Advanced Energy Well Matter Compressor Spectral Analyzer Experimental Transmission Jammer Advanced Focal Shield Advanced Point Defense System Long-range Tractor Beam Power Bank Transdimensional Reconstructor Subatomic Replicator Improved Arc Projector Vortex Driver Vortex Driver Null Cannon Hypervelocity Multirail Enhanced Hardcell Cannon Omega Cannon Heavy Proton Missile Launcher [Rating: 226] Favorites ----------- Power Ion Engine Engine Ion Engine Power Core Neutrino Core Reactor Light Antimatter Reactor Propulsion Light Treads Treads Light Treads Wheel Overtuned Scrapsphere Utility Huge Storage Unit Device Advanced Sensor Array Storage Huge Storage Unit Processor Advanced Signal Interpreter Hackware Advanced Hacking Suite Protection Hardened Medium Armor Plating Weapon Battle Cannon Energy Gun Gatling Laser Energy Cannon Heavy Phase Cannon Ballistic Gun KE Penetrator Ballistic Cannon Battle Cannon Launcher Missile Launcher Impact Weapon Heavy Flail Build | -11 -10 -10 -8 -6 -6 -6 -6 -5 -5 -5 -5 -5 -4 -4 -4 -4 -4 -4 -3 -3 -2 -2 -2 -1 ------- Run | Yrd Mat Sub Scr Fac Low Low Dat Pro Fac Upp Upp War Pro Fac Ext Cet Arc Hub Res Tes Res Qua Sec Acc Slots Evolved 18 | . . . . 8 . . . . 2 . . . . 2 . . . . 2 . 2 . . 2 Power 3 | . . . . 1 . . . . . . . . . . . . . . 1 . . . . 1 Propulsion 4 | . . . . 2 . . . . . . . . . 1 . . . . 1 . . . . . Utility 10 | . . . . 4 . . . . 2 . . . . 1 . . . . . . 2 . . 1 Weapon 1 | . . . . 1 . . . . . . . . . . . . . . . . . . . . Parts Attached 174 | 7 8 8 2 8 4 6 . 4 14 4 . 6 3 15 6 12 7 4 14 21 5 9 5 2 Power 20 | 1 1 1 1 . . 1 . . 1 2 . . 1 1 . 2 1 1 2 2 . 2 . . Engine 5 | 1 1 1 1 . . 1 . . . . . . . . . . . . . . . . . . Core 2 | . . . . . . . . . 1 1 . . . . . . . . . . . . . . Reactor 13 | . . . . . . . . . . 1 . . 1 1 . 2 1 1 2 2 . 2 . . Propulsion 24 | 2 . 3 . 1 . 1 . 1 3 . . 1 . 3 2 1 . 1 1 1 1 2 . . Treads 21 | 2 . 3 . 1 . 1 . 1 1 . . 1 . 3 1 1 . 1 1 1 1 2 . . Leg . | . . . . . . . . . . . . . . . . . . . . . . . . . Wheel 3 | . . . . . . . . . 2 . . . . . 1 . . . . . . . . . Hover . | . . . . . . . . . . . . . . . . . . . . . . . . . Flight . | . . . . . . . . . . . . . . . . . . . . . . . . . Utility 77 | 2 4 1 1 4 1 4 . 1 6 2 . 3 1 8 2 5 1 2 8 7 4 5 3 2 Device 51 | 1 1 1 . 3 . 2 . 1 3 2 . 3 . 7 2 3 1 1 6 6 1 5 2 . Storage 7 | 1 3 . . . . . . . . . . . . . . 1 . . 1 . . . . 1 Processor 8 | . . . . 1 . 1 . . 1 . . . . . . . . 1 . . 3 . . 1 Hackware 3 | . . . . . . . . . 1 . . . . 1 . . . . . 1 . . . . Protection 8 | . . . 1 . 1 1 . . 1 . . . 1 . . 1 . . 1 . . . 1 . Artifact . | . . . . . . . . . . . . . . . . . . . . . . . . . Weapon 53 | 2 3 3 . 3 3 . . 2 4 . . 2 1 3 2 4 5 . 3 11 . . 2 . Energy Gun 5 | . 1 . . . . . . 1 . . . . . . . 1 . . . . . . 2 . Energy Cannon 11 | . . . . . . . . . 1 . . 2 1 . . 1 . . . 6 . . . . Ballistic Gun 26 | 2 1 . . 3 1 . . 1 3 . . . . . 2 2 5 . 3 3 . . . . Ballistic Cannon 7 | . 1 3 . . . . . . . . . . . 2 . . . . . 1 . . . . Launcher 3 | . . . . . 1 . . . . . . . . 1 . . . . . 1 . . . . Special Weapon . | . . . . . . . . . . . . . . . . . . . . . . . . . Impact Weapon 1 | . . . . . 1 . . . . . . . . . . . . . . . . . . . Slashing Weapon . | . . . . . . . . . . . . . . . . . . . . . . . . . Piercing Weapon . | . . . . . . . . . . . . . . . . . . . . . . . . . Special Melee Weapon . | . . . . . . . . . . . . . . . . . . . . . . . . . Unidentified Prototypes 41 | . . 1 . . 1 1 . . . . . 4 . 2 . 6 1 2 7 13 . 2 1 . Corrupted Parts 1 | . . . . . . . . . . . . . . . . . . 1 . . . . . . System Corruption 4 | . . . . . . . . . . . . . . . . . . 4 . . . . . . Parts Lost 18 | . 2 1 . . 1 . . 1 . 1 . . 1 1 1 . . . 2 1 . 1 . 5 Power 3 | . . 1 . . . . . . . . . . . . . . . . 1 . . . . 1 Propulsion . | . . . . . . . . . . . . . . . . . . . . . . . . . Utility 11 | . 1 . . . 1 . . 1 . 1 . . 1 . . . . . 1 1 . 1 . 3 Weapon 4 | . 1 . . . . . . . . . . . . 1 1 . . . . . . . . 1 Highest Loss Streak 5 | . 2 1 . . 1 . . 1 . 1 . . 1 1 1 . . . 2 1 . 1 . 5 To Critical Strikes . | . . . . . . . . . . . . . . . . . . . . . . . . . Average Backups 21 | 2 14 23 19 16 17 18 19 18 22 24 25 23 22 22 22 22 21 22 20 23 20 21 21 20 Power 1 | . 1 2 . . . . . . 1 2 2 1 1 2 2 2 2 2 1 . 1 1 1 . Propulsion 3 | . 4 6 3 1 1 1 1 1 2 3 3 3 3 2 2 2 2 2 . 1 1 1 2 2 Utility 7 | . 1 3 4 7 9 10 11 10 10 11 11 11 9 10 11 11 11 11 13 13 10 10 9 8 Weapon 8 | . 6 10 10 7 6 6 6 6 6 5 6 6 8 6 5 5 6 7 6 7 8 7 7 8 Tool/Special . | . . . . . . . . . . . . . . . . . . . . . . . . . Unused Backups 60 | . . 4 14 . . 1 . 2 . 2 . 7 . 3 4 6 . 1 2 3 . 1 . 10 Power 4 | . . . 2 . . . . . . . . 1 . . . 1 . . . . . . . . Propulsion 11 | . . 2 4 . . . . . . . . . . . 1 2 . . . . . . . 2 Utility 21 | . . . 2 . . . . 2 . . . 4 . 1 1 2 . 1 2 1 . 1 . 4 Weapon 20 | . . 2 6 . . 1 . . . 2 . 1 . 2 2 . . . . 2 . . . 2 Tool/Special 4 | . . . . . . . . . . . . 1 . . . 1 . . . . . . . 2 Average Slot Usage (%) 90 | . 95 94 89 89 91 98 78 96 92 93 94 93 93 94 90 84 85 85 82 76 78 78 79 79 Engine 6 | . 14 8 14 6 6 10 12 12 5 . . . . . . . . . . . . . . . Reactor 3 | . . . . . . . . . . 2 5 5 10 10 10 10 10 10 12 8 8 8 8 10 Treads 20 | . 28 28 28 25 25 25 25 25 11 11 11 11 11 14 12 10 10 10 12 13 12 12 12 11 Wheel 2 | . . . . . . . . . 10 11 11 11 11 10 7 5 5 5 . . . . . . Device 14 | . 10 14 1 18 15 12 12 14 19 19 22 21 19 20 25 21 20 19 14 12 19 19 20 18 Storage 9 | . 14 14 14 6 6 6 6 6 5 5 5 5 5 5 5 5 5 5 4 4 4 4 4 3 Processor 3 | . . . . 4 6 10 12 7 3 5 5 5 5 5 5 5 5 5 9 9 11 12 12 14 Hackware 1 | . . . . . . . . . 2 5 5 5 5 5 5 5 5 5 4 4 . . . . Protection 2 | . . . 3 6 7 7 6 6 5 2 . . 1 4 . 2 5 5 3 4 4 4 4 2 Energy Gun 1 | . 2 . . . . . . 4 5 5 5 5 5 3 . . . . . . . . . . Energy Cannon 1 | . . . . . . . . . 4 5 5 5 5 5 5 4 . . 2 4 4 6 8 7 Ballistic Gun 8 | . 14 . . 19 23 25 3 19 11 11 11 10 11 9 4 14 19 20 14 12 12 9 8 6 Ballistic Cannon 12 | . 10 27 28 . . . . . . . . . . 1 10 . . . . . . . . . Peak Build Rating 226 | 7 8 17 18 39 41 47 43 54 82 91 91 100 102 128 134 149 150 150 188 204 207 221 215 226 Average Rating 71 | 5 7 14 14 36 37 42 37 45 74 88 91 93 100 118 129 142 147 147 181 195 200 212 214 222 On Entrance 97 | . 7 8 17 18 39 39 43 43 50 82 91 91 100 99 127 132 147 147 148 180 199 201 215 215 Naked Turns . | . . . . . . . . . . . . . . . . . . . . . . . . . Heaviest Build 219 | 11 51 92 99 67 74 81 74 118 139 142 138 138 146 156 156 160 162 158 178 218 210 219 197 215 Greatest Support 240 | 40 40 40 40 80 80 80 80 83 43 16 16 16 16 84 100 20 20 20 240 240 220 220 220 220 Greatest Overweight (x) 52 | . 1 2 2 . . 1 . 1 8 8 8 8 9 9 9 7 52 7 . . . . . . Average Overweight (x) 3 | . . 1 1 . . . . . 7 8 8 8 8 7 7 7 11 6 . . . . . . Largest Inventory Capacity 25 | 8 25 25 25 20 20 20 20 25 25 25 25 25 25 25 25 25 25 25 25 25 25 25 25 25 Average Capacity 23 | 7 17 23 24 20 20 20 20 20 25 25 25 25 25 25 25 25 25 25 25 25 25 25 25 25 Most Carried 25 | 4 19 25 25 19 19 20 20 20 25 25 25 25 25 25 25 25 25 25 25 25 24 25 25 24 Average Carried 22 | 2 14 23 19 17 18 19 20 19 22 24 24 24 24 24 24 24 24 24 21 24 22 24 24 23 Final Capacity 25 | 8 20 25 20 20 20 20 20 25 25 25 25 25 25 25 25 25 25 25 25 25 25 25 25 25 Final Carried 25 | 4 19 25 20 19 18 20 20 20 23 25 25 25 24 24 24 25 25 25 24 25 22 24 25 23 Class Distribution -------------------- 47% | Mutant 18% | Scavenger-Skirmisher 15% | Scavenger-Tank 7% | Scavenger-Scrapper 3% | Commander-Tank Dominant Class ---------------- Mutant | -10/Materials Mutant | -10/Subcaves Mutant | -8/Scraptown Skirmisher | -6/Factory Commander-Tank | -6/Lower Caves Scavenger-Tank | -6/Lower Caves Scavenger-Mutant | -6/Data Miner Scavenger-Tank | -5/Proximity Caves Scavenger-Scrapper | -5/Factory Scavenger-Skirmisher | -5/Upper Caves Scavenger-Skirmisher | -5/Upper Caves Scavenger-Skirmisher | -5/Warlord Scavenger-Skirmisher | -4/Proximity Caves Scavenger-Skirmisher | -4/Factory Scavenger-Skirmisher | -4/Extension Scavenger-Tank | -4/Cetus Scavenger-Scrapper | -4/Archives Scavenger-Scrapper | -4/Hub_04(d) Scavenger-Tank | -3/Research Scavenger-Tank | -3/Testing Scavenger-Tank | -2/Research Skirmisher | -2/Quarantine Skirmisher | -2/Section 7 Generator-Skirmisher | -1/Access Resources | -11 -10 -10 -8 -6 -6 -6 -6 -5 -5 -5 -5 -5 -4 -4 -4 -4 -4 -4 -3 -3 -2 -2 -2 -1 ----------- Run | Yrd Mat Sub Scr Fac Low Low Dat Pro Fac Upp Upp War Pro Fac Ext Cet Arc Hub Res Tes Res Qua Sec Acc Matter Collected 7998 | 292 277 576 110 . 710 183 . 547 143 339 35 106 83 294 931 272 337 500 416 1239 28 478 102 . Remotely 815 | . . . . . . . . . . . . . . 112 256 . . . 226 221 . . . . Salvage Created 8121 | 136 603 91 . . 187 27 . 429 292 431 . 59 89 481 1100 425 331 648 551 1292 28 714 207 . Parts 391 | 11 29 5 . . 8 1 . 17 19 19 . 3 5 29 43 15 17 29 14 79 1 40 7 . Haulers Intercepted 6 | . 2 . . . . . . . 1 . . . . . . . . . 2 1 . . . . Recyclers Shooed 4 | . 3 . . . . . . . . . . . . . . . . . . . . . 1 . Parts Field Recycled . | . . . . . . . . . . . . . . . . . . . . . . . . . Retrieved Matter . | . . . . . . . . . . . . . . . . . . . . . . . . . Parts Self-Destructed 100 | . . 14 . . 22 3 . 29 . 17 10 . 5 . . . . . . . . . . . Prevented 14 | . . . . . 7 7 . . . . . . . . . . . . . . . . . . Kills | -11 -10 -10 -8 -6 -6 -6 -6 -5 -5 -5 -5 -5 -4 -4 -4 -4 -4 -4 -3 -3 -2 -2 -2 -1 ------- Run | Yrd Mat Sub Scr Fac Low Low Dat Pro Fac Upp Upp War Pro Fac Ext Cet Arc Hub Res Tes Res Qua Sec Acc Combat Hostiles Destroyed 119 | . 13 4 . . 6 1 . 12 3 8 . 1 3 11 12 5 . 8 4 15 . 12 1 . Melee 1 | . . . . . . . . 1 . . . . . . . . . . . . . . . . Guns 61 | . 6 . . . 2 1 . 4 2 5 . 1 2 4 3 4 . 8 3 12 . 4 . . Cannons 44 | . 7 4 . . . . . . 1 3 . . 1 7 8 1 . . 1 3 . 7 1 . AOE 11 | . . . . . 4 . . 7 . . . . . . . . . . . . . . . . Classes Destroyed 22 | 2 4 3 . . 1 . . 2 2 1 . . . . 2 . 1 1 1 . . 2 . . Worker 5 | . . . . . . . . . . . . . . . . . . 2 1 1 . 1 . . Builder 8 | . . . . . . . . . 1 . . . . 1 . . . 1 . 4 1 . . . Tunneler 6 | 3 . . . . . . . . 1 . . . . 1 1 . . . . . . . . . Hauler 6 | . 2 . . . . . . . 1 . . . . . . . . . 2 1 . . . . Recycler 6 | 1 1 . . . . . . . . . . . . . 2 . . . . 1 . . 1 . Operator 8 | . . . . . . . . . . . . . . . 2 . 5 . . . . 1 . . Drone 3 | . . . . . . . . 1 . . . . 2 . . . . . . . . . . . Turret 2 | . . 2 . . . . . . . . . . . . . . . . . . . . . . Watcher 8 | . 3 . . . . . . . . . . . . . 2 2 . . . 1 . . . . Swarmer 27 | . 3 2 . . 4 1 . 3 . . . . . 5 3 . . . . 1 . 5 . . Grunt 37 | . 10 1 . . 1 . . 4 . 5 . 1 . 1 3 . . 4 3 4 . . . . Brawler 3 | . . . . . . . . 3 . . . . . . . . . . . . . . . . Duelist 6 | . . . . . 1 . . 1 . 1 . . . 1 1 . . . . 1 . . . . Researcher 2 | . . . . . . . . . . . . . . . . . . . . . . 2 . . Sentry 9 | . . 1 . . . . . . 1 . . . 1 . 4 . . 1 . . . . 1 . Hunter 4 | . . . . . . . . . . 1 . . . . . . . 1 . . . 2 . . Programmer 20 | . . . . . . . . . 2 1 . . . 4 . . . . . 9 . 4 . . Behemoth 1 | . . . . . . . . . . . . . . . 1 . . . . . . . . . Cetus Guard 5 | . . . . . . . . . . . . . . . . 5 . . . . . . . . Lightning 2 | . . . . . . . . . . . . . . . . . . 2 . . . . . . Fortress 1 | . . . . . . . . . . . . . . . . . . . . . . 1 . . Artisan 1 | . . 1 . . . . . . . . . . . . . . . . . . . . . . Scrapoid 1 | . . . . . . . . . . . . . . . . . 1 . . . . . . . Savage 1 | . . . . . . . . . . . . . . . . . 1 . . . . . . . Revision 1 | . . . . . . . . . . . . . . . . . . . 1 . . . . . Best Kill Streak 9 | 2 4 3 . . 4 1 . 9 3 3 . 1 1 4 3 5 3 6 3 5 1 5 2 . Combat Bots Only 9 | . 3 2 . . 4 1 . 9 1 3 . 1 1 4 3 4 . 4 2 3 . 5 1 . Max Kills in Single Turn 3 | 1 1 1 . . 2 1 . 2 1 1 . 1 1 2 1 2 1 1 1 3 1 2 1 . Gunslinging . | . . . . . . . . . . . . . . . . . . . . . . . . . Exploded 2 | . . . . . 2 . . 2 . . . . . . . . . . . . . . . . Melee 1 | . . . . . . . . 1 . . . . . . . . . . . . . . . . Uniques/NPCs Destroyed . | . . . . . . . . . . . . . . . . . . . . . . . . . Combat | -11 -10 -10 -8 -6 -6 -6 -6 -5 -5 -5 -5 -5 -4 -4 -4 -4 -4 -4 -3 -3 -2 -2 -2 -1 -------- Run | Yrd Mat Sub Scr Fac Low Low Dat Pro Fac Upp Upp War Pro Fac Ext Cet Arc Hub Res Tes Res Qua Sec Acc Hostile Shots Fired 857 | . 45 90 . . 11 20 . 9 36 42 . 16 6 56 26 14 . 59 81 91 10 75 4 166 Missed 241 | . 13 39 . . 2 7 . 3 21 9 . 4 2 7 7 4 . 18 18 18 2 25 1 41 Hits 616 | . 32 51 . . 9 13 . 6 15 33 . 12 4 49 19 10 . 41 63 73 8 50 3 125 Melee 14 | . . . . . 2 . . 3 . . . . . 4 . . . . 4 1 . . . . Projectile 602 | . 32 51 . . 7 13 . 3 15 33 . 12 4 45 19 10 . 41 59 72 8 50 3 125 AOE 6 | . . 2 . . . . . . . . . 1 . . . . . . 3 . . . . . Critical Strikes 36 | . 1 . . . 1 . . . 1 . . . . 4 1 2 . 2 6 10 . 3 . 5 Actively Blocked 11 | . . . . . . . . . . . . . . . . . . . 4 . . 2 . 5 Part Disruptions 1 | . . . . . . . . . . . . . . . . . . . . 1 . . . . Damage Taken 11494 | . 365 588 . . 202 114 . 176 306 615 . 263 92 989 374 212 . 744 1819 1496 100 794 84 2161 Core 867 | . 46 57 . . 18 . . . . 20 . 18 . 207 25 38 . 15 80 128 . 37 30 148 Absorbed by Shields 1384 | . . . . . . . . . . . . . . 27 139 77 . 268 32 179 103 559 . . Reduced by Siege Mode 98 | . . . . . . . . . . . . . . . . . . . . 25 . 73 . . Ignored by Resistances 252 | . . . . . . . . . . . . . . . . . . . . . . 137 . 115 Regen/Repaired (Parts) 559 | . . . 429 . . . . . 2 10 . 108 . . . 10 . . . . . . . . Core Remaining (%) 86 | 100 . . 58 . . . . 97 . . . . 96 . . . . 75 . 84 . . 95 90 Volleys Fired 637 | 11 62 59 . 3 10 3 . 15 67 17 . 5 5 45 40 9 13 27 67 81 15 52 16 15 Largest 4 | 2 2 2 . 1 4 4 . 4 4 4 . 4 4 4 4 4 4 4 4 4 1 4 4 2 Hottest 365 | 40 70 66 . 30 108 100 . 163 236 236 . 236 236 236 235 240 190 134 195 365 150 323 228 155 Shots Fired 1474 | 22 123 118 . 3 29 11 . 37 109 69 1 13 20 100 139 33 43 108 115 180 15 137 31 18 Gun 764 | 22 90 3 . 3 26 11 . 31 42 51 1 8 15 45 33 25 39 108 54 90 . 53 14 . Cannon 701 | . 33 115 . . . . . . 67 18 . 5 5 55 106 8 4 . 61 90 15 84 17 18 Launcher 9 | . . . . . 3 . . 6 . . . . . . . . . . . . . . . . Special . | . . . . . . . . . . . . . . . . . . . . . . . . . Kinetic 912 | 22 97 118 . 3 26 11 . 28 28 34 . 6 10 47 100 24 39 108 54 90 . 53 14 . Thermal 553 | . 26 . . . . . . 3 81 35 1 7 10 53 39 9 4 . 61 90 15 84 17 18 Explosive 9 | . . . . . 3 . . 6 . . . . . . . . . . . . . . . . Electromagnetic . | . . . . . . . . . . . . . . . . . . . . . . . . . Robot Hit Streak 21 | 6 21 6 . . 5 2 . 13 7 14 . 3 4 13 10 6 5 9 13 13 7 18 10 . Robot Miss Streak 8 | 4 4 3 . . 3 2 . 8 5 6 . 2 3 5 6 4 2 5 4 4 . 5 2 . Penetration Max 1 | . . . . . . . . . . . . 1 . 1 . 1 1 1 1 1 . . . . Secondary Targets 4 | . 1 . . . . . . 1 . . . . . . . . . 2 . . . . . . Max Gunslinging Chain 1 | . 1 . . . . . . 1 . . . . . . . . . 1 . . . . . . Shots Hit Robots 676 | 14 77 23 . . 18 6 . 19 35 39 . 5 10 40 64 15 27 63 37 96 1 73 14 . Core Hits 321 | 9 30 11 . . 9 2 . 24 13 23 . 2 6 21 29 17 16 25 16 40 . 23 5 . Critical Kills 19 | . . . . . . . . . . 2 . . . . 1 2 2 3 2 4 . 3 . . Critical Parts Destroyed 23 | . . . . . . . . . . 1 . . . . . . 1 5 5 7 . 3 1 . Critical Strikes 50 | . 3 1 . . . . . . . 3 . . . 1 3 2 4 8 7 11 . 6 1 . Burn 2 | . 2 . . . . . . . . . . . . . . . . . . . . . . . Meltdown 3 | . . . . . . . . . . . . . . . 1 . . . . . . 2 . . Destroy 40 | . . . . . . . . . . 3 . . . . . 2 4 8 7 11 . 4 1 . Blast 5 | . 1 1 . . . . . . . . . . . 1 2 . . . . . . . . . Melee Attacks 1 | . . . . . 1 . . . . . . . . . . . . . . . . . . . Impact 1 | . . . . . 1 . . . . . . . . . . . . . . . . . . . Slashing . | . . . . . . . . . . . . . . . . . . . . . . . . . Piercing . | . . . . . . . . . . . . . . . . . . . . . . . . . Sneak Attacks . | . . . . . . . . . . . . . . . . . . . . . . . . . Combat Hostiles . | . . . . . . . . . . . . . . . . . . . . . . . . . Follow-up Attacks . | . . . . . . . . . . . . . . . . . . . . . . . . . Damage Inflicted 21180 | 118 992 549 . . 587 99 . 1201 1019 1008 . 202 259 1389 2300 782 870 1867 1177 3570 41 2694 455 1 Guns 10678 | 111 529 . . . 313 99 . 275 531 588 . 166 152 696 535 574 700 1854 936 1912 . 518 189 . Cannons 9093 | . 430 549 . . . . . . 479 420 . 36 107 693 1758 208 169 . 193 1568 41 2176 266 . Explosions 1199 | . . . . . 274 . . 925 . . . . . . . . . . . . . . . . Melee . | . . . . . . . . . . . . . . . . . . . . . . . . . Ramming 210 | 7 33 . . . . . . 1 9 . . . . . 7 . 1 13 48 90 . . . 1 Kinetic 11938 | 111 734 549 . . 313 99 . 239 296 262 . 144 74 767 1667 574 700 1854 936 1912 . 518 189 . Thermal 7833 | . 225 . . . . . . 36 714 746 . 58 185 622 626 208 169 . 193 1568 41 2176 266 . Explosive 1199 | . . . . . 274 . . 925 . . . . . . . . . . . . . . . . Electromagnetic . | . . . . . . . . . . . . . . . . . . . . . . . . . Impact . | . . . . . . . . . . . . . . . . . . . . . . . . . Slashing . | . . . . . . . . . . . . . . . . . . . . . . . . . Piercing . | . . . . . . . . . . . . . . . . . . . . . . . . . Highest Corruption 14 | . . . . 4 4 4 4 9 2 2 2 2 . 4 4 4 4 6 . 14 . 4 4 . Average Corruption 4 | . . . . 3 4 4 4 8 1 2 2 2 . 3 4 4 3 2 . 8 . 3 4 . Corruption Purged 4 | . . . . . . . . . . . . . . . . . 4 . . . . . . . Corruption Blocked . | . . . . . . . . . . . . . . . . . . . . . . . . . Effects 245 | . . . . 2 19 23 4 31 2 22 8 1 . 8 36 16 8 1 . 49 . 8 7 . Message Errors 54 | . . . . . 2 4 . 8 . 9 3 . . 2 9 4 . . . 12 . 1 . . Matter Fused 51 | . . . . . 4 4 1 8 . 3 3 . . 2 7 4 3 1 . 9 . . 2 . Heat Flow Errors 36 | . . . . . 3 7 1 2 . 2 . . . 1 5 3 1 . . 8 . 3 . . Energy Discharges 34 | . . . . 2 2 2 1 4 . 4 . . . 1 7 2 1 . . 4 . 3 1 . Parts Rejected 1 | . . . . . . . . . . . . . . . . . . . . . . 1 . . Parts Fused 2 | . . . . . . . . 1 . . . . . . . . . . . 1 . . . . Data Loss (minor) 28 | . . . . . 3 2 . 4 2 2 . 1 . . 7 . 1 . . 3 . . 3 . Data Loss (major) 15 | . . . . . 4 3 . 2 . 1 1 . . . 1 1 . . . 2 . . . . Misfires 8 | . . . . . 1 . . 1 . 1 1 . . 1 . 1 1 . . 1 . . . . Alerts 5 | . . . . . . . 1 . . . . . . 1 . . 1 . . 1 . . 1 . Weapon Failures 11 | . . . . . . 1 . 1 . . . . . . . 1 . . . 8 . . . . Overload Shots 5 | . . . . . . . . . . . . . . . . 1 . . . . 2 2 . . Overflow Damage 403 | . . 1 . . 4 . . . 16 . . . . 70 18 . 2 . . 100 11 160 21 . Projectiles 399 | . . 1 . . . . . . 16 . . . . 70 18 . 2 . . 100 11 160 21 . Explosions 4 | . . . . . 4 . . . . . . . . . . . . . . . . . . . Melee . | . . . . . . . . . . . . . . . . . . . . . . . . . Knockbacks 22 | . 9 5 . . . . . . . . . . . 4 4 . . . . . . . . . Impact . | . . . . . . . . . . . . . . . . . . . . . . . . . Kinetic 21 | . 9 5 . . . . . . . . . . . 3 4 . . . . . . . . . Secondary 1 | . . . . . . . . . . . . . . 1 . . . . . . . . . . Self-Inflicted Damage 29 | . . . . . . . . 29 . . . . . . . . . . . . . . . . Shots 1 | . . . . . . . . 1 . . . . . . . . . . . . . . . . Rammed 23 | 4 9 . . . . . . . 1 . . . . . 1 . 1 1 2 3 . . . 1 Targets Rammed 27 | 4 10 . . . . . . 1 2 . . . . . 1 . 1 1 2 4 . . . 1 Kicked . | . . . . . . . . . . . . . . . . . . . . . . . . . Crushed 4 | . 1 . . . . . . 1 1 . . . . . . . . . . 1 . . . . Highest Temperature 411 | . 172 . . . 229 240 207 210 305 267 . 15 137 162 176 217 43 286 191 411 60 141 58 . Average Temperature 69 | . 51 . . . 109 102 111 57 99 77 . 10 60 51 57 53 15 89 83 83 32 38 27 . Received Heat Transfer 1466 | . 195 201 . . 54 . . 18 9 183 . 72 18 69 40 6 . 144 238 94 20 42 18 45 Siege Activations 9 | . . . . . . . . . . . . . . . . . . . . 3 . 6 . . Total Turns 88 | . . . . . . . . . . . . . . . . . . . . 29 . 59 . . Longest Duration 27 | . . . . . . . . . . . . . . . . . . . . 13 . 27 . . Martial Activations . | . . . . . . . . . . . . . . . . . . . . . . . . . Shielding Activations . | . . . . . . . . . . . . . . . . . . . . . . . . . Robots Disrupted . | . . . . . . . . . . . . . . . . . . . . . . . . . Combat Hostiles . | . . . . . . . . . . . . . . . . . . . . . . . . . Robots Corrupted . | . . . . . . . . . . . . . . . . . . . . . . . . . Combat Hostiles . | . . . . . . . . . . . . . . . . . . . . . . . . . Parts Fried . | . . . . . . . . . . . . . . . . . . . . . . . . . Impact Corruptions . | . . . . . . . . . . . . . . . . . . . . . . . . . Robots Melted 3 | . . . . . . . . . . . . . . . 1 . . . . . . 2 . . Combat Hostiles 2 | . . . . . . . . . . . . . . . 1 . . . . . . 1 . . Parts Melted 22 | . 4 . . . . . . . 1 3 . . . 4 3 . . . . 2 1 4 . . Heat Transferred 8289 | . 814 . . . . . . 75 956 1169 . 87 286 769 666 222 . . . 1406 37 1543 259 . Parts Sabotaged . | . . . . . . . . . . . . . . . . . . . . . . . . . Parts Stolen . | . . . . . . . . . . . . . . . . . . . . . . . . . Parts Stripped . | . . . . . . . . . . . . . . . . . . . . . . . . . Power Chain Reactions . | . . . . . . . . . . . . . . . . . . . . . . . . . Alert | -11 -10 -10 -8 -6 -6 -6 -6 -5 -5 -5 -5 -5 -4 -4 -4 -4 -4 -4 -3 -3 -2 -2 -2 -1 ------- Run | Yrd Mat Sub Scr Fac Low Low Dat Pro Fac Upp Upp War Pro Fac Ext Cet Arc Hub Res Tes Res Qua Sec Acc Maximum Alert Level 3 | . . . . . . . . . 2 . . . . 1 1 1 1 3 2 1 . . . . Low Security (%) 68 | 100 100 . . 100 . . . . . . . . . 37 69 46 88 51 . 91 100 100 100 100 Level 1 27 | . . . . . . . . . 87 . . . . 62 30 53 11 7 82 8 . . . . Level 2 2 | . . . . . . . . . 11 . . . . . . . . 12 17 . . . . . Level 3 . | . . . . . . . . . . . . . . . . . . 29 . . . . . . Level 4 . | . . . . . . . . . . . . . . . . . . . . . . . . . Level 5 . | . . . . . . . . . . . . . . . . . . . . . . . . . High Security . | . . . . . . . . . . . . . . . . . . . . . . . . . Max Security . | . . . . . . . . . . . . . . . . . . . . . . . . . Peak Influence 960 | 10 83 . . 15 . . . . 457 . . . . 332 273 273 261 960 493 259 134 195 36 20 Initial 493 | . . . . . . . . . 457 . . . . 300 102 127 80 . 493 128 134 14 10 4 Average 132 | . 21 . . . . . . . 295 . . . . 209 113 195 67 410 325 104 49 86 13 1 Influence Increases 7615 | 20 401 231 . 15 375 128 . 381 669 215 . 80 30 711 726 391 275 1320 234 641 76 532 107 57 Destroy 0b10 Robot/C 3220 | . 260 180 . . 220 80 . 320 60 160 . 20 20 220 320 160 80 440 80 300 . 280 20 . Destroy 0b10 Robot/NC 280 | 20 30 . . . . . . 10 15 . . . 10 10 45 10 25 30 15 40 5 10 5 . Destroy Leader 508 | . 70 10 . . 30 10 . 20 22 40 . . . 40 36 . . 92 24 64 . 40 10 . Allied During Kill 1091 | . . 11 . . 125 38 . 16 . . . . . . 132 170 105 494 . . . . . . Successful Hack 126 | . 25 . . . . . . . . . . . . . 3 . . . 21 . 16 31 30 . Select Force Hacks 50 | . . . . . . . . . . . . . . . . . . 50 . . . . . . Disable Machine 660 | . . . . 15 . . . . 60 . . . . 75 45 15 45 90 15 165 15 75 15 30 Destroy Structure 720 | . 1 . . . . . . . 62 . . . . 66 100 36 20 124 64 72 40 81 27 27 Advance Influence 750 | . . . . . . . . . 450 . . . . 300 . . . . . . . . . . Lose Combat Pursuer 210 | . 15 30 . . . . . 15 . 15 . 60 . . 45 . . . 15 . . 15 . . Influence Decreases 7615 | 20 381 251 . 15 278 225 . 368 434 463 . 21 89 500 709 419 475 380 945 631 289 539 119 64 Entered New Map 1194 | . . 10 . . . 19 . . 6 93 . . 59 . 109 101 120 . 447 101 105 12 9 3 Time Decay 5540 | 20 371 184 . 15 268 160 . 264 428 360 . 21 30 490 487 278 335 160 478 520 111 409 110 41 Lost Part 110 | . 10 . . . 10 . . 10 . 10 . . . 10 . . . . 20 10 . 10 . 20 Lost Ally 590 | . . 57 . . . 46 . 94 . . . . . . 113 40 20 220 . . . . . . Purge Threat 181 | . . . . . . . . . . . . . . . . . . . . . 73 108 . . Squads Dispatched 33 | . 3 . . 1 . . . . 3 . . . . 5 1 . . 5 5 4 2 3 . 1 Investigation 9 | . . . . 1 . . . . 2 . . . . . 1 . . 4 1 . . . . . Extermination 12 | . . . . . . . . . 1 . . . . 2 . . . . . 4 1 3 . 1 Reinforcement 12 | . 3 . . . . . . . . . . . . 3 . . . 1 4 . 1 . . . Assault . | . . . . . . . . . . . . . . . . . . . . . . . . . Garrison . | . . . . . . . . . . . . . . . . . . . . . . . . . Intercept . | . . . . . . . . . . . . . . . . . . . . . . . . . Searches Triggered . | . . . . . . . . . . . . . . . . . . . . . . . . . Data Miner Redirects 2 | . . . . . . . . . . . . . . . 1 . . 1 . . . . . . Construction Impeded . | . . . . . . . . . . . . . . . . . . . . . . . . . Haulers Reinforced 2 | . . . . . . . . . . . . . . . . . . 1 1 . . . . . Active Scanning Responses . | . . . . . . . . . . . . . . . . . . . . . . . . . Cargo Convoy Interrupts . | . . . . . . . . . . . . . . . . . . . . . . . . . Stealth | -11 -10 -10 -8 -6 -6 -6 -6 -5 -5 -5 -5 -5 -4 -4 -4 -4 -4 -4 -3 -3 -2 -2 -2 -1 --------- Run | Yrd Mat Sub Scr Fac Low Low Dat Pro Fac Upp Upp War Pro Fac Ext Cet Arc Hub Res Tes Res Qua Sec Acc Distress Signals 13 | . . . . . . . . 1 . . . 2 . . . 2 . 1 7 . . . . . Communications Jammed 168 | . . . . . . . . . . . . . 2 34 12 2 . 72 2 10 . 10 . 24 Distress Signals 163 | . . . . . . . . . . . . . . 34 12 2 . 72 2 7 . 10 . 24 Times Spotted 278 | . 30 23 . . 11 3 . 14 5 8 . 36 4 18 19 10 7 19 24 22 1 17 2 5 Peak Tracking Total 15 | . 3 3 . . 4 3 . 9 2 4 . 15 1 6 4 5 2 7 7 3 1 3 1 5 Tactical Retreats 10 | . 1 1 . . . . . 1 . 1 . 3 . . 1 . . . 1 . . 1 . . Traps | -11 -10 -10 -8 -6 -6 -6 -6 -5 -5 -5 -5 -5 -4 -4 -4 -4 -4 -4 -3 -3 -2 -2 -2 -1 ------- Run | Yrd Mat Sub Scr Fac Low Low Dat Pro Fac Upp Upp War Pro Fac Ext Cet Arc Hub Res Tes Res Qua Sec Acc Traps Triggered 18 | . . . . 3 . . . . . . . . . 1 8 . . . 1 4 . . . 1 Indirectly . | . . . . . . . . . . . . . . . . . . . . . . . . . Trap Hack Attempts . | . . . . . . . . . . . . . . . . . . . . . . . . . Triggered . | . . . . . . . . . . . . . . . . . . . . . . . . . Disarmed . | . . . . . . . . . . . . . . . . . . . . . . . . . Reprogrammed . | . . . . . . . . . . . . . . . . . . . . . . . . . Reused . | . . . . . . . . . . . . . . . . . . . . . . . . . Traps Extracted . | . . . . . . . . . . . . . . . . . . . . . . . . . Installed . | . . . . . . . . . . . . . . . . . . . . . . . . . Triggered . | . . . . . . . . . . . . . . . . . . . . . . . . . Machines | -11 -10 -10 -8 -6 -6 -6 -6 -5 -5 -5 -5 -5 -4 -4 -4 -4 -4 -4 -3 -3 -2 -2 -2 -1 ---------- Run | Yrd Mat Sub Scr Fac Low Low Dat Pro Fac Upp Upp War Pro Fac Ext Cet Arc Hub Res Tes Res Qua Sec Acc Machines Disabled 49 | . 1 3 . 1 . . . . 4 . . . . 5 4 1 3 6 1 11 1 5 1 2 Max in Single Turn 1 | . 1 1 . 1 . . . . 1 . . . . 1 1 1 . 1 1 1 1 1 1 1 Garrison Access 3 | . . . . . . . . . 1 . . . . . . . . . 2 . . . . . Network Hub 1 | . . . . . . . . . . . . . . . . . . 1 . . . . . . Machines Repaired . | . . . . . . . . . . . . . . . . . . . . . . . . . Machines Dismantled . | . . . . . . . . . . . . . . . . . . . . . . . . . Machines Sabotaged 1 | . . . . . . . . . . . . . . . . . . 1 . . . . . . Overloaded Fab Kills . | . . . . . . . . . . . . . . . . . . . . . . . . . Hacking | -11 -10 -10 -8 -6 -6 -6 -6 -5 -5 -5 -5 -5 -4 -4 -4 -4 -4 -4 -3 -3 -2 -2 -2 -1 --------- Run | Yrd Mat Sub Scr Fac Low Low Dat Pro Fac Upp Upp War Pro Fac Ext Cet Arc Hub Res Tes Res Qua Sec Acc Machines Accessed 56 | . 7 2 3 1 . 1 4 . 7 1 . 1 . 3 5 1 . 5 3 3 2 4 2 1 Terminals 35 | . 5 . . . . . . . 5 . . . . 3 3 1 . 5 3 2 2 4 2 . Fabricators . | . . . . . . . . . . . . . . . . . . . . . . . . . Repair Stations 1 | . . . . . . . . . . . . . . . 1 . . . . . . . . . Recycling Units 5 | . 2 . . 1 . . . . 1 . . . . . 1 . . . . . . . . . Scanalyzers . | . . . . . . . . . . . . . . . . . . . . . . . . . Garrison Access 3 | . . . . . . . . . 1 . . . . . . . . . . 1 . . . 1 Total Hacks 146 | . 14 5 13 2 . 1 31 . 12 1 . 1 . 7 13 2 . 7 9 5 5 9 8 1 Successful 84 | . 9 5 13 1 . 1 31 . 2 1 . 1 . 1 6 . . 4 2 . 2 3 2 . Failed 62 | . 5 . . 1 . . . . 10 . . . . 6 7 2 . 3 7 5 3 6 6 1 Catastrophic 12 | . 1 . . . . . . . 1 . . . . . 1 1 . 1 2 2 . 1 1 1 Database Lockouts . | . . . . . . . . . . . . . . . . . . . . . . . . . Manual 65 | . 12 . . 3 . . . . 10 . . 1 . 6 9 1 . 7 6 . . 7 3 . Terminals 77 | . 11 . . . . . . . 8 . . . . 7 9 2 . 7 9 2 5 9 8 . Fabricators . | . . . . . . . . . . . . . . . . . . . . . . . . . Repair Stations 3 | . . . . . . . . . . . . . . . 3 . . . . . . . . . Recycling Units 9 | . 3 . . 2 . . . . 3 . . . . . 1 . . . . . . . . . Scanalyzers . | . . . . . . . . . . . . . . . . . . . . . . . . . Garrison Access 5 | . . . . . . . . . 1 . . . . . . . . . . 3 . . . 1 Terminal Hacks 63 | . 1 5 13 . . 1 31 . 1 1 . 1 . 1 2 . . . 1 . 2 2 1 . Record 28 | . . 4 12 . . . 11 . . . . . . . . . . . . . . . 1 . Part Schematic 12 | . . . . . . . 12 . . . . . . . . . . . . . . . . . Robot Schematic 5 | . . . . . . . 5 . . . . . . . . . . . . . . . . . Robot Analysis 1 | . 1 . . . . . . . . . . . . . . . . . . . . . . . Prototype ID Bank 3 | . . . . . . . 3 . . . . . . . . . . . . . . . . . Open Door 3 | . . . . . . 1 . . . 1 . 1 . . . . . . . . . . . . Branch Access Points 3 | . . . . . . . . . 1 . . . . 1 . . . . . . 1 . . . Alert Level 1 | . . . . . . . . . . . . . . . 1 . . . . . . . . . Unreport Threat 3 | . . . . . . . . . . . . . . . . . . . . . 1 2 . . Recall Investigation 1 | . . . . . . . . . . . . . . . 1 . . . . . . . . . Registered Components 1 | . . . . . . . . . . . . . . . . . . . 1 . . . . . Proto ID Catalog 2 | . . 1 1 . . . . . . . . . . . . . . . . . . . . . Fabricator Hacks . | . . . . . . . . . . . . . . . . . . . . . . . . . Repair Station Hacks 1 | . . . . . . . . . . . . . . . 1 . . . . . . . . . Scan Component 1 | . . . . . . . . . . . . . . . 1 . . . . . . . . . Recycling Unit Hacks 2 | . 2 . . . . . . . . . . . . . . . . . . . . . . . Retrieve Components 2 | . 2 . . . . . . . . . . . . . . . . . . . . . . . Scanalyzer . | . . . . . . . . . . . . . . . . . . . . . . . . . Garrison Access Hacks 1 | . . . . . . . . . 1 . . . . . . . . . . . . . . . Seal Access 1 | . . . . . . . . . 1 . . . . . . . . . . . . . . . Unauthorized Hacks 17 | . 6 . . 1 . . . . . . . . . . 3 . . 4 1 . . 1 1 . Terminals 15 | . 6 . . . . . . . . . . . . . 2 . . 4 1 . . 1 1 . Botnet 6 | . 1 . . . . . . . . . . . . . 2 . . . 1 . . 1 1 . Skim 5 | . 5 . . . . . . . . . . . . . . . . . . . . . . . Sabotage 4 | . . . . . . . . . . . . . . . . . . 4 . . . . . . Fabricators . | . . . . . . . . . . . . . . . . . . . . . . . . . Repair Stations . | . . . . . . . . . . . . . . . . . . . . . . . . . Recycling Units 2 | . . . . 1 . . . . . . . . . . 1 . . . . . . . . . Scrapoids 2 | . . . . 1 . . . . . . . . . . 1 . . . . . . . . . Scanalyzers . | . . . . . . . . . . . . . . . . . . . . . . . . . Garrison Access . | . . . . . . . . . . . . . . . . . . . . . . . . . Data Cores Recovered 1 | . . . . . . . . . . . . . . . 1 . . . . . . . . . Used . | . . . . . . . . . . . . . . . . . . . . . . . . . Hacking Detections 32 | . 5 . . . . . . . 5 . . . . 2 2 2 . 2 3 3 1 4 2 1 Full Trace Events 2 | . . . . . . . . . 2 . . . . . . . . . . . . . . . Feedback Events . | . . . . . . . . . . . . . . . . . . . . . . . . . Feedback Blocked . | . . . . . . . . . . . . . . . . . . . . . . . . . Robot Schematics Acquired 7 | . . . . . . . 5 . . . . . . . . . . . . . . 2 . . Robots Built . | . . . . . . . . . . . . . . . . . . . . . . . . . Authchips . | . . . . . . . . . . . . . . . . . . . . . . . . . Time . | . . . . . . . . . . . . . . . . . . . . . . . . . Total Robot Build Rating . | . . . . . . . . . . . . . . . . . . . . . . . . . Part Schematics Acquired 18 | . . . . . . . 12 . . . . . . . . . . . . . . 6 . . Parts Built . | . . . . . . . . . . . . . . . . . . . . . . . . . Authchips . | . . . . . . . . . . . . . . . . . . . . . . . . . Time . | . . . . . . . . . . . . . . . . . . . . . . . . . Total Part Build Rating . | . . . . . . . . . . . . . . . . . . . . . . . . . Parts Repaired . | . . . . . . . . . . . . . . . . . . . . . . . . . Time . | . . . . . . . . . . . . . . . . . . . . . . . . . Parts Recycled . | . . . . . . . . . . . . . . . . . . . . . . . . . Recycled Matter . | . . . . . . . . . . . . . . . . . . . . . . . . . Retrieved Matter . | . . . . . . . . . . . . . . . . . . . . . . . . . Retrieved Components 10 | . 10 . . . . . . . . . . . . . . . . . . . . . . . Parts Scanalyzed . | . . . . . . . . . . . . . . . . . . . . . . . . . Part Schematics Acquired . | . . . . . . . . . . . . . . . . . . . . . . . . . Parts Damaged . | . . . . . . . . . . . . . . . . . . . . . . . . . Bothacking | -11 -10 -10 -8 -6 -6 -6 -6 -5 -5 -5 -5 -5 -4 -4 -4 -4 -4 -4 -3 -3 -2 -2 -2 -1 ------------ Run | Yrd Mat Sub Scr Fac Low Low Dat Pro Fac Upp Upp War Pro Fac Ext Cet Arc Hub Res Tes Res Qua Sec Acc Used RIF Installer . | . . . . . . . . . . . . . . . . . . . . . . . . . Robots Hacked . | . . . . . . . . . . . . . . . . . . . . . . . . . Non-combat . | . . . . . . . . . . . . . . . . . . . . . . . . . Combat . | . . . . . . . . . . . . . . . . . . . . . . . . . Robot Hacks Applied . | . . . . . . . . . . . . . . . . . . . . . . . . . Relay Couplers Released 3 | . . . . . . . . . . . . . . . . . . . 3 . . . . . Machine Destruction 3 | . . . . . . . . . . . . . . . . . . . 3 . . . . . Fabnet Peak Effective % . | . . . . . . . . . . . . . . . . . . . . . . . . . Robots Rewired 6 | . . . . . . . . 2 . . . . . . 4 . . . . . . . . . Allies Hacked . | . . . . . . . . . . . . . . . . . . . . . . . . . Hacks Repelled . | . . . . . . . . . . . . . . . . . . . . . . . . . Allies | -11 -10 -10 -8 -6 -6 -6 -6 -5 -5 -5 -5 -5 -4 -4 -4 -4 -4 -4 -3 -3 -2 -2 -2 -1 -------- Run | Yrd Mat Sub Scr Fac Low Low Dat Pro Fac Upp Upp War Pro Fac Ext Cet Arc Hub Res Tes Res Qua Sec Acc Total Allies 54 | . . 14 . 5 . 4 . 2 . . . . . . 24 5 . . . . . . . . Largest Group 20 | . . 6 3 8 8 8 4 4 . . . . . . 17 20 17 13 1 . . . . . Highest-Rated Group 1255 | . . 114 57 203 203 427 103 103 . . . . . . 859 1255 1070 792 96 . . . . . Highest-Rated Ally 159 | . . 19 19 31 31 81 28 49 . . . . . . 159 159 159 96 96 . . . . . Total Orders 15 | . . . . . . . . . . . . . . 5 . . . . 1 . 8 1 . . STAY 1 | . . . . . . . . . . . . . . . . . . . 1 . . . . . ROAM 1 | . . . . . . . . . . . . . . 1 . . . . . . . . . . EXPLORE 7 | . . . . . . . . . . . . . . 2 . . . . . . 4 1 . . RETURN 6 | . . . . . . . . . . . . . . 2 . . . . . . 4 . . . Ally Attacks 421 | . . 56 . . 37 28 . 35 . . . . . . 84 30 22 129 . . . . . . Total Damage 10362 | . . 791 . . 601 517 . 463 . . . . . . 2088 1180 381 4341 . . . . . . Kills 55 | . . 8 . . 5 4 . 6 . . . . . . 6 5 4 17 . . . . . . Allies Corrupted 3 | . . . . . . . . . . . . . . . . . . 3 . . . . . . Allies Melted . | . . . . . . . . . . . . . . . . . . . . . . . . . Intel | -11 -10 -10 -8 -6 -6 -6 -6 -5 -5 -5 -5 -5 -4 -4 -4 -4 -4 -4 -3 -3 -2 -2 -2 -1 ------- Run | Yrd Mat Sub Scr Fac Low Low Dat Pro Fac Upp Upp War Pro Fac Ext Cet Arc Hub Res Tes Res Qua Sec Acc Active Infowar (turns) 20851 | 57 1680 791 . 312 718 450 167 915 1047 1228 837 1802 672 1289 1808 602 1450 347 1224 1510 328 994 289 334 Sensors 13541 | . . . . 253 289 . . . 667 1228 837 1801 672 1288 1804 162 1104 233 1198 720 . 662 289 334 IFF 2944 | . . . . 312 718 450 167 915 382 . . . . . . . . . . . . . . . Terrain 1766 | . . . . . . . . . . . . . . . . . . . . . 328 815 289 334 Seismic 2532 | 57 1680 791 . . . . . . . . . . . . . . . . . . . . 4 . Jamming 10575 | . . . . . . . . 304 537 . . . 409 628 1808 602 1450 347 1224 1502 328 815 287 334 ECM 1 | . . . . . . . . . . . . 1 . . . . . . . . . . . . Robot Analysis Total 1 | . 1 . . . . . . . . . . . . . . . . . . . . . . . Derelict Logs Recovered 12 | . . 2 5 . . . . 2 . 1 1 . 1 . . . . . . . . . . . Drone Launches 8 | . . . . . . . . . . . . . . 2 . . . . . . 5 1 . . Drone Recoveries 6 | . . . . . . . . . . . . . . 2 . . . . . . 4 . . . Exploration | -11 -10 -10 -8 -6 -6 -6 -6 -5 -5 -5 -5 -5 -4 -4 -4 -4 -4 -4 -3 -3 -2 -2 -2 -1 ------------- Run | Yrd Mat Sub Scr Fac Low Low Dat Pro Fac Upp Upp War Pro Fac Ext Cet Arc Hub Res Tes Res Qua Sec Acc Turns Passed 35468 | 166 2298 7923 6346 314 718 774 167 915 1047 1228 837 1818 672 1291 1808 602 1518 347 1224 1510 328 994 289 334 Spaces Moved 14732 | 74 907 2437 1861 184 418 459 100 491 511 764 528 1000 342 615 991 336 313 180 575 716 170 450 140 170 Core 34 | 1 . . . . . . . . . . . . . . . . 33 . . . . . . . Treads 9313 | 73 907 2437 1861 184 418 459 100 491 17 . . . . 142 3 . . . 575 716 170 450 140 170 Legs . | . . . . . . . . . . . . . . . . . . . . . . . . . Wheels 5385 | . . . . . . . . . 494 764 528 1000 342 473 988 336 280 180 . . . . . . Hover . | . . . . . . . . . . . . . . . . . . . . . . . . . Flight . | . . . . . . . . . . . . . . . . . . . . . . . . . Fastest Speed 50 | 50 160 240 250 160 160 160 160 160 140 150 150 150 150 160 140 140 140 130 160 160 163 163 163 163 Average Speed 215 | 158 222 313 339 160 160 160 160 160 158 150 150 150 153 178 151 140 406 139 160 161 163 163 163 163 Slowest Speed 2650 | 160 240 340 340 160 160 245 160 245 430 150 150 150 160 241 241 140 2650 140 160 163 163 163 163 163 Overloaded Moves . | . . . . . . . . . . . . . . . . . . . . . . . . . Propulsion Burnouts . | . . . . . . . . . . . . . . . . . . . . . . . . . Robots Hopped 3 | . . 3 . . . . . . . . . . . . . . . . . . . . . . Potential Cave-ins 16 | . . . . . . . . . 5 . . . . . . . . . 5 5 1 . . . Cave-ins Triggered . | . . . . . . . . . . . . . . . . . . . . . . . . . Exploration Rate (%) 51 | 5 97 96 85 2 56 51 69 68 16 71 66 81 51 23 82 77 88 28 27 69 11 59 10 7 Regions Visited 24 Branch Regions 17 Pre-discovered Areas 6 | . 2 1 1 . . . 1 . . 1 . . . . . . . . . . . . . . Known Exits Taken 19 | . . . . 1 1 1 1 . 1 1 1 1 1 1 1 1 1 1 1 1 1 1 1 . Unknown Exits Taken 5 | 1 1 1 1 . . . . 1 . . . . . . . . . . . . . . . . Scrap Searched 26 | . . 8 5 . 3 1 . 2 . 2 2 . 3 . . . . . . . . . . . Spaces Dug 150 | . . . . . 12 . . 22 19 . . 1 . 19 2 . . . 21 19 8 11 6 10 Terrain Destroyed 482 | . . 2 . . 29 . . 43 49 16 . 5 2 33 57 6 12 51 62 51 12 29 12 11 Melee 1 | . . . . . 1 . . . . . . . . . . . . . . . . . . . Projectile 409 | . . 2 . . . . . . 49 16 . 5 2 33 57 6 12 51 62 51 12 28 12 11 AOE 71 | . . . . . 28 . . 43 . . . . . . . . . . . . . . . . Terrain Rammed . | . . . . . . . . . . . . . . . . . . . . . . . . . Walls Destroyed . | . . . . . . . . . . . . . . . . . . . . . . . . . Machines Disabled . | . . . . . . . . . . . . . . . . . . . . . . . . . Actions | -11 -10 -10 -8 -6 -6 -6 -6 -5 -5 -5 -5 -5 -4 -4 -4 -4 -4 -4 -3 -3 -2 -2 -2 -1 --------- Run | Yrd Mat Sub Scr Fac Low Low Dat Pro Fac Upp Upp War Pro Fac Ext Cet Arc Hub Res Tes Res Qua Sec Acc Total 17371 | 99 1060 2593 1889 199 442 487 107 591 662 801 574 1316 478 734 1220 451 540 233 772 932 205 607 171 208 Wait 1303 | . 57 64 . . 5 2 . 53 53 5 45 272 124 27 111 66 192 10 69 42 10 76 1 19 Move 14702 | 73 906 2431 1860 183 417 458 99 490 510 763 527 999 341 614 990 335 312 179 574 715 169 449 139 169 Hop 2 | . . 2 . . . . . . . . . . . . . . . . . . . . . . Pick Up 145 | 4 14 16 10 4 . 7 . 5 7 5 1 11 . 11 5 9 2 3 11 15 1 4 . . Fast Attach 84 | 7 1 1 1 2 3 2 4 2 2 . . 6 1 4 4 5 2 3 5 19 1 5 4 . Attach 44 | . 2 . 1 5 1 . . 1 5 1 . . 1 4 . . 1 1 10 4 3 1 . 3 Detach 7 | . 1 . . . . . . 1 3 . . . . 1 . . . . 1 . . . . . Swap 159 | . 5 8 1 2 5 9 . 3 8 5 . 3 3 15 8 11 9 3 17 18 4 13 8 1 Drop 198 | . 2 12 16 . . 6 4 8 5 5 1 20 3 13 11 16 8 6 16 34 2 7 3 . Fire 637 | 11 62 59 . 3 10 3 . 15 67 17 . 5 5 45 40 9 13 27 67 81 15 52 16 15 Melee 1 | . . . . . 1 . . . . . . . . . . . . . . . . . . . Ram 1 | . . . . . . . . . . . . . . . . . 1 . . . . . . . Kick . | . . . . . . . . . . . . . . . . . . . . . . . . . Crush 26 | 4 10 . . . . . . 1 2 . . . . . 1 . . 1 2 4 . . . 1 Escape Stasis 34 | . . . . . . . . . . . . . . . 34 . . . . . . . . . Rewire 28 | . . . . . . . . 12 . . . . . . 16 . . . . . . . . . Trap . | . . . . . . . . . . . . . . . . . . . . . . . . . Miscellaneous . | . . . . . . . . . . . . . . . . . . . . . . . . . Route ------- -11/Scrapyard -10/Materials (discovered 6 exits: [*Mat x3] / *Min x2 / *Sub) -10/Subcaves (discovered 4 exits: [*Mat x2] / [*Rec] / *Scr) -8/Scraptown (discovered 2 exits: *Fac x2) -6/Factory -6/Lower Caves -6/Lower Caves -6/Data Miner -5/Proximity Caves -5/Factory (discovered 3 exits: *Fac / *Upp x2) -5/Upper Caves -5/Upper Caves -5/Warlord -4/Proximity Caves -4/Factory (discovered 5 exits: Upp x2 / *Ext x2 / Arm) -4/Extension (discovered 2 exits: *Res / *Cet) -4/Cetus (discovered 3 exits: *Res x2 / *Arc) -4/Archives (discovered 3 exits: *Res / *Hub x2) -4/Hub_04(d) -3/Research -3/Testing -2/Research (discovered 2 exits: *Qua x2) -2/Quarantine (discovered 2 exits: *Sec / *Frg) -2/Section 7 -1/Access To Fleet Rendezvous History --------- Turn | Location | Event 8 | -11/Scrapyard | Discovered new exit (range 16) 167 | -11/Scrapyard | Entered Materials 204 | -10/Materials | Discovered new exit (range 15) 315 | -10/Materials | Build established: Mutant 543 | -10/Materials | Discovered new exit (range 10) 962 | -10/Materials | Discovered new exit (range 11) 1658 | -10/Materials | Discovered new exit (range 4) 1959 | -10/Materials | Learned location of Mines (-10) 2060 | -10/Materials | Learned 4 Recycling zone layouts 2076 | -10/Materials | Discovered new exit (range 10) 2093 | -10/Materials | Identified exit to Mines 2114 | -10/Materials | Learned Storage emergency access door positions 2145 | -10/Materials | Learned location of Subcaves (-10) 2176 | -10/Materials | Learned location of 2 exits from Mines 2219 | -10/Materials | Learned location of 1 exit from Recycling 2465 | -10/Materials | Entered Subcaves 2466 | -10/Subcaves | Approached by a straggling Scientist 2621 | -10/Subcaves | Discovered new exit (range 9) 3242 | -10/Subcaves | Visited triangular shrine 3256 | -10/Subcaves | Found Prototype Device 3256 | -10/Subcaves | Identified V3-11A's Pendant 3261 | -10/Subcaves | Befriended Subdweller 3326 | -10/Subcaves | Shifting Twisted Machinery released Spk. Treads 3326 | -10/Subcaves | Befriended Subdweller 3371 | -10/Subcaves | Befriended Subdweller 3371 | -10/Subcaves | Befriended Subdweller 3390 | -10/Subcaves | A swath of the cavern ceiling suddenly collapsed 3511 | -10/Subcaves | Scientist uncovered a shortcut to Scraptown 3564 | -10/Subcaves | Learned 2 Materials zone layouts 3597 | -10/Subcaves | Discovered new exit (range 15) 3636 | -10/Subcaves | Lost 4 allies 3812 | -10/Subcaves | Approached by friendly Subdweller 4165 | -10/Subcaves | Visited 4L-MR0's lab 4198 | -10/Subcaves | Found Power Bank 4537 | -10/Subcaves | Visited Clippyterm 4547 | -10/Subcaves | Learned location of Extension (-4) 4547 | -10/Subcaves | Learned Research machine intel 4626 | -10/Subcaves | Shifting Twisted Machinery released Battle Cannon 4821 | -10/Subcaves | Befriended Subdweller 4821 | -10/Subcaves | Befriended Subdweller 4911 | -10/Subcaves | Befriended Subdweller 4965 | -10/Subcaves | Shifting Twisted Machinery released Battle Cannon 5093 | -10/Subcaves | Shifting Twisted Machinery released Sub. Machine Gun 5264 | -10/Subcaves | Lost 3 allies 5347 | -10/Subcaves | Discovered new exit (range 6) 5501 | -10/Subcaves | Befriended Subdweller 5604 | -10/Subcaves | A swath of the cavern ceiling suddenly collapsed 6206 | -10/Subcaves | Shifting Twisted Machinery released Battle Cannon 7106 | -10/Subcaves | Befriended Subdweller 8308 | -10/Subcaves | Learned Materials non-interactive machine intel 8315 | -10/Subcaves | Ambushed by Subdwellers from Twisted Machinery 8316 | -10/Subcaves | Befriended Subdweller 8316 | -10/Subcaves | Befriended Subdweller 8339 | -10/Subcaves | Disturbed a concealed Subdweller 8341 | -10/Subcaves | Befriended Subdweller 9372 | -10/Subcaves | A Subdweller sparked back to life 9372 | -10/Subcaves | A Subdweller sparked back to life 9372 | -10/Subcaves | A Subdweller sparked back to life 9374 | -10/Subcaves | Ambushed by Subdweller buried in earth 9376 | -10/Subcaves | Befriended Subdweller 9405 | -10/Subcaves | Lost 3 allies 10388 | -10/Subcaves | Entered Scraptown 10388 | -8/Scraptown | Accompanied by 3 allies 10878 | -8/Scraptown | Delivered V3-11A's Pendant to T0-NE2 in exchange for information 11092 | -8/Scraptown | Visited UFD Registry 11092 | -8/Scraptown | Registered with UFD as "Protontorch" 11276 | -8/Scraptown | Scanned Subdweller tech in exchange for log data 11286 | -8/Scraptown | Learned location of Quarantine (-2) 11289 | -8/Scraptown | Learned Factory non-interactive machine intel 11300 | -8/Scraptown | Learned Research emergency access door positions 11303 | -8/Scraptown | Learned location of 1 exit from Research 11306 | -8/Scraptown | Learned Factory emergency access door positions 11577 | -8/Scraptown | Visited Curators Association 11706 | -8/Scraptown | Visited Science Guys 11822 | -8/Scraptown | Visited Abandonware Association 11863 | -8/Scraptown | Learned abandonware demo "TRNCOAT.EXE" 11938 | -8/Scraptown | Visited Observation Area 11992 | -8/Scraptown | Visited Scrap Suit Storage 12040 | -8/Scraptown | Visited Science Testing Area 12074 | -8/Scraptown | Visited Chapter 10 12182 | -8/Scraptown | Visited Infowarlord's Domain 12237 | -8/Scraptown | Visited LU-1G1's Boring Crew 12342 | -8/Scraptown | Found Exp. Terrain Scan Processor 12489 | -8/Scraptown | Found Scrap Suit 13762 | -8/Scraptown | Discovered new exit (range 9) 14272 | -8/Scraptown | Visited Cyclists 14296 | -8/Scraptown | Entered Cyclist Reading Room 14377 | -8/Scraptown | Visited Fellowship of the Rings 14493 | -8/Scraptown | Visited Assassins FH 15528 | -8/Scraptown | Visited Comm Corps 15596 | -8/Scraptown | Visited SPCMW 15736 | -8/Scraptown | Visited CR-KLE's Repair Center 15763 | -8/Scraptown | CR-KLE repaired 6 parts 16723 | -8/Scraptown | Discovered new exit (range 3) 16734 | -8/Scraptown | Entered Factory 16734 | -6/Factory | Accompanied by 3 allies 16734 | -6/Factory | Evolved 8 slots: Power x1, Propulsion x2, Utility x4, Weapon x1 16736 | -6/Factory | Loaded intel: 268 non-interactive machine locations 16858 | -6/Factory | Discovered new exit (range 4) 16863 | -6/Factory | Identified exit to Lower Caves 16999 | -6/Factory | Scrapoids reinforcements arrived? 17048 | -6/Factory | Entered Lower Caves 17048 | -6/Lower Caves | Accompanied by 8 allies 17281 | -6/Lower Caves | Found Alien Artifact 17281 | -6/Lower Caves | Identified Core Expander 17281 | -6/Lower Caves | Installed Core Expander, added new Weapon slot 17306 | -6/Lower Caves | Build established: Commander-Skirmisher 17522 | -6/Lower Caves | Discovered new exit (range 5) 17627 | -6/Lower Caves | Build established: Commander-Tank 17757 | -6/Lower Caves | Identified exit to Lower Caves 17766 | -6/Lower Caves | Entered another Lower Caves area 17766 | -6/Lower Caves | Accompanied by 8 allies 17881 | -6/Lower Caves | Prototype Device suddenly appears! 17885 | -6/Lower Caves | Found Prototype Device 18021 | -6/Lower Caves | Identified Amulet of Y3-NDR 18037 | -6/Lower Caves | Joined by bewildered Wizard 18037 | -6/Lower Caves | Joined by bewildered Wizard 18038 | -6/Lower Caves | Joined by bewildered Wizard 18099 | -6/Lower Caves | Joined by bewildered Wizard 18208 | -6/Lower Caves | Build established: Scavenger-Tank 18251 | -6/Lower Caves | Discovered new exit (range 12) 18267 | -6/Lower Caves | Identified exit to Data Miner 18540 | -6/Lower Caves | Entered Data Miner 18540 | -6/Data Miner | Accompanied by 4 allies 18543 | -6/Data Miner | Discovered new exit (range 6) 18573 | -6/Data Miner | Met Data Miner 18621 | -6/Data Miner | Learned location of Section 7 (-2) 18621 | -6/Data Miner | Acquired the access code to Warlord's prototype stash 18632 | -6/Data Miner | Received God Mode back door access code from Data Miner 18704 | -6/Data Miner | Identified exit to Proximity Caves 18707 | -6/Data Miner | Entered Proximity Caves 18707 | -5/Proximity Caves | Accompanied by 4 allies 18794 | -5/Proximity Caves | Spotter reported a threat 18815 | -5/Proximity Caves | Learned Factory security intel 18820 | -5/Proximity Caves | Spotter reported a threat 18887 | -5/Proximity Caves | Lost 3 allies 18911 | -5/Proximity Caves | Destroyed 9 combat bots 18934 | -5/Proximity Caves | Spotter reported a threat 19360 | -5/Proximity Caves | Learned Factory terminal intel 19533 | -5/Proximity Caves | Discovered new exit (range 12) 19622 | -5/Proximity Caves | Entered Factory 19622 | -5/Factory | Evolved 2 slots: Utility x2 19624 | -5/Factory | Loaded intel: 26 terminal locations 19901 | -5/Factory | Build established: Scavenger-Scrapper 20161 | -5/Factory | Identified exit to Upper Caves 20293 | -5/Factory | Discovered new exit (range 9) 20309 | -5/Factory | Identified exit to Factory 20669 | -5/Factory | Entered Upper Caves 20773 | -5/Upper Caves | Learned location of Armory (-4) 20870 | -5/Upper Caves | Entered a destroyed Warlord outpost 20904 | -5/Upper Caves | Build established: Scavenger-Skirmisher 21867 | -5/Upper Caves | Discovered new exit (range 9) 21879 | -5/Upper Caves | Identified exit to Upper Caves 21897 | -5/Upper Caves | Entered another Upper Caves area 22142 | -5/Upper Caves | Learned Factory emergency access door positions 22440 | -5/Upper Caves | Discovered new exit (range 11) 22455 | -5/Upper Caves | Identified exit to Warlord 22734 | -5/Upper Caves | Entered Warlord 22785 | -5/Warlord | System corruption cleaned by Quarantine Array 23290 | -5/Warlord | Opened Warlord's prototype stash 23297 | -5/Warlord | Found Prototype Reactor 23305 | -5/Warlord | Found Prototype Device 23305 | -5/Warlord | Identified Thermal Barrier 23623 | -5/Warlord | Warlord's base attacked by MAIN.C 23689 | -5/Warlord | Found Prototype Energy Cannon 23689 | -5/Warlord | Identified Vortex Driver 23692 | -5/Warlord | Found Prototype Energy Cannon 23692 | -5/Warlord | Identified Vortex Cannon 23698 | -5/Warlord | Found Vortex Driver 23717 | -5/Warlord | Found Prototype Launcher 23973 | -5/Warlord | Warlord forces counterattacked 24298 | -5/Warlord | Warlord base infiltrated, sounded retreat 24326 | -5/Warlord | Spotted Striker 24342 | -5/Warlord | Spotted Striker 24346 | -5/Warlord | Rebuked by Warlord 24401 | -5/Warlord | Spotted Striker 24401 | -5/Warlord | Spotted Striker 24436 | -5/Warlord | Lost 6 allies 24450 | -5/Warlord | Spotted Striker 24455 | -5/Warlord | Spotted Executioner 24465 | -5/Warlord | Discovered new exit (range 14) 24487 | -5/Warlord | Identified exit to Proximity Caves 24506 | -5/Warlord | Lost 12 allies 24552 | -5/Warlord | Entered Proximity Caves 24633 | -4/Proximity Caves | Learned Research security intel 24803 | -4/Proximity Caves | Spotter reported a threat 24864 | -4/Proximity Caves | Spotter reported a threat 25055 | -4/Proximity Caves | Attracted the attention of an 0b10 checkpoint 25142 | -4/Proximity Caves | Discovered exit to Factory (range 14) 25224 | -4/Proximity Caves | Entered Factory 25224 | -4/Factory | Evolved 2 slots: Propulsion x1, Utility x1 25461 | -4/Factory | Found Faulty Exp. Signal Interpreter 25519 | -4/Factory | Build established: Scavenger-Tank 25599 | -4/Factory | Identified exit to Upper Caves 25599 | -4/Factory | Identified exit to Extension 25599 | -4/Factory | Identified exit to Armory 25858 | -4/Factory | Build established: Scavenger-Skirmisher 26515 | -4/Factory | Entered Extension 26741 | -4/Extension | Rescued a captive Derelict 26748 | -4/Extension | Rescued a captive Derelict 27104 | -4/Extension | Scrapoids reinforcements arrived? 27121 | -4/Extension | Incoming investigation squad redirected 27182 | -4/Extension | Rescued a captive Derelict 27183 | -4/Extension | Rescued a captive Derelict 27294 | -4/Extension | Rescued a captive Derelict 27502 | -4/Extension | Spotted B-86 Titan 27514 | -4/Extension | Allies destroyed B-86 Titan 27527 | -4/Extension | Spotted B-86 Titan 27540 | -4/Extension | Destroyed B-86 Titan 27560 | -4/Extension | Found Scrap Suit 27568 | -4/Extension | Lost 4 allies 27851 | -4/Extension | Build established: Scavenger-Tank 27857 | -4/Extension | Rescued a captive Derelict 27858 | -4/Extension | Rescued a captive Derelict 27863 | -4/Extension | Rescued a captive Derelict 27863 | -4/Extension | Rescued a captive Derelict 27928 | -4/Extension | Rescued a captive Derelict 27929 | -4/Extension | Rescued a captive Derelict 27942 | -4/Extension | Rescued a captive Derelict 27968 | -4/Extension | Rescued a captive Derelict 28020 | -4/Extension | Rescued a captive Derelict 28021 | -4/Extension | Rescued a captive Derelict 28050 | -4/Extension | Rescued A7 28202 | -4/Extension | Build established: Commander-Tank 28231 | -4/Extension | Discovered new exit (range 10) 28232 | -4/Extension | Discovered new exit (range 6) 28239 | -4/Extension | Identified exit to Cetus 28323 | -4/Extension | Entered Cetus 28323 | -4/Cetus | Accompanied by 17 allies (A7) 28328 | -4/Cetus | Acquired a Cetus Manufacturing Module code from A7 28373 | -4/Cetus | Spotted Cetus Guard 28374 | -4/Cetus | Destroyed Cetus Guard 28377 | -4/Cetus | Spotted Cetus Guard 28378 | -4/Cetus | Allies destroyed Cetus Guard 28380 | -4/Cetus | Spotted Cetus Guard 28383 | -4/Cetus | Allies destroyed Cetus Guard 28429 | -4/Cetus | Discovered new exit (range 15) 28528 | -4/Cetus | Started Cetus Manufacturing Module 28553 | -4/Cetus | Manufactured an Enhanced Grunt 28578 | -4/Cetus | Manufactured an Enhanced Grunt 28603 | -4/Cetus | Manufactured an Enhanced Grunt 28611 | -4/Cetus | Escorted A7 to Cetus Mainframe 28628 | -4/Cetus | Manufactured an Enhanced Grunt 28653 | -4/Cetus | Manufactured an Enhanced Grunt 28699 | -4/Cetus | Discovered new exit (range 15) 28748 | -4/Cetus | Spotted Cetus Guard 28751 | -4/Cetus | Spotted Cetus Guard 28752 | -4/Cetus | Spotted Cetus Guard 28753 | -4/Cetus | Destroyed Cetus Guard 28756 | -4/Cetus | Spotted Cetus Guard 28760 | -4/Cetus | Destroyed Cetus Guard 28765 | -4/Cetus | Destroyed Cetus Guard 28768 | -4/Cetus | Destroyed Cetus Guard 28797 | -4/Cetus | Discovered new exit (range 15) 28804 | -4/Cetus | Met Revision 17 28841 | -4/Cetus | Found Prototype Device 28841 | -4/Cetus | Identified Exp. Thermal Shield 28880 | -4/Cetus | Identified exit to Archives 28925 | -4/Cetus | Entered Archives 28925 | -4/Archives | Accompanied by 17 allies (A7) 28930 | -4/Archives | Received a hacking code to weaken MAIN.C 28964 | -4/Archives | Discovered new exit (range 15) 28982 | -4/Archives | Discovered new exit (range 16) 29054 | -4/Archives | Build established: Scavenger-Tank 29195 | -4/Archives | Discovered new exit (range 16) 29335 | -4/Archives | Identified exit to Hub_04(d) 29360 | -4/Archives | Build established: Scavenger-Scrapper 30443 | -4/Archives | Entered Hub_04(d) 30443 | -4/Hub_04(d) | Accompanied by 13 allies 30478 | -4/Hub_04(d) | P-70 Sage assimilated allied ZG-01F(h) 30713 | -4/Hub_04(d) | Network Hub disabled 30717 | -4/Hub_04(d) | Spotted Lightning 30718 | -4/Hub_04(d) | Spotted Lightning 30722 | -4/Hub_04(d) | Discovered new exit (range 14) 30722 | -4/Hub_04(d) | Spotted Lightning 30734 | -4/Hub_04(d) | Allies destroyed Lightning 30735 | -4/Hub_04(d) | Incoming investigation squad redirected 30741 | -4/Hub_04(d) | Destroyed Lightning 30752 | -4/Hub_04(d) | Destroyed Lightning 30760 | -4/Hub_04(d) | Found Prototype Processor 30760 | -4/Hub_04(d) | Identified Exp. Targeting Computer 30778 | -4/Hub_04(d) | Lost 8 allies 30788 | -4/Hub_04(d) | Identified exit to Research 30790 | -4/Hub_04(d) | Entered Research 30790 | -3/Research | Accompanied by 1 ally 30790 | -3/Research | Evolved 2 slots: Power x1, Propulsion x1 30791 | -3/Research | Identified exit to Testing 30794 | -3/Research | Loaded intel: 117 machine locations 30990 | -3/Research | Revision forces began assault on 0b10 31058 | -3/Research | Build established: Scavenger-Tank 31062 | -3/Research | Met up with Revision 17++ 31073 | -3/Research | Spotted B-86 Titan 31098 | -3/Research | Found Prototype Device 31098 | -3/Research | Identified Exp. Transmission Jammer 31102 | -3/Research | Found Exp. Transmission Jammer 31142 | -3/Research | Found Prototype Protection 31142 | -3/Research | Identified Centrium Heavy Armor Plating 31281 | -3/Research | Found Spectral Analyzer 31490 | -3/Research | Research terminal network offline 31990 | -3/Research | Spotted Striker 32014 | -3/Research | Entered Testing 32015 | -3/Testing | Identified Vortex Chain Reactor 32060 | -3/Testing | Found Prototype Energy Cannon 32060 | -3/Testing | Identified Null Cannon 32275 | -3/Testing | Found Prototype Device 32275 | -3/Testing | Identified Exp. Shield Generator 32287 | -3/Testing | Found Prototype Launcher 32287 | -3/Testing | Identified Adv. Micro-nuke Launcher 32339 | -3/Testing | Found Prototype Ballistic Cannon 32339 | -3/Testing | Identified Omega Cannon 32440 | -3/Testing | Found Prototype Hackware 32440 | -3/Testing | Identified Ghost Barrier 32781 | -3/Testing | Discovered new exit (range 14) 32802 | -3/Testing | System corruption reached 10% 32845 | -3/Testing | Found Exp. Thermal Shield 32857 | -3/Testing | Identified exit to Research 32900 | -3/Testing | Found Prototype Ballistic Gun 32900 | -3/Testing | Identified Hyp. Multirail 33172 | -3/Testing | Found Prototype Energy Cannon 33172 | -3/Testing | Identified Cld. Nova Cannon 33204 | -3/Testing | Build established: Hacker-Tank 33524 | -3/Testing | Entered Research 33524 | -2/Research | Evolved 2 slots: Utility x2 33700 | -2/Research | Identified exit to Quarantine 33843 | -2/Research | Spotted B-90 Cyclops 33845 | -2/Research | Build established: Scavenger-Tank 33852 | -2/Research | Entered Quarantine 34237 | -2/Quarantine | Found Alien Artifact 34237 | -2/Quarantine | Identified Core Reset Matrix 34237 | -2/Quarantine | Used Core Reset Matrix 34241 | -2/Quarantine | Detected hypermatrix surge 34241 | -2/Quarantine | Sensed 10 artifacts in vicinity 34412 | -2/Quarantine | Found Subatomic Replicator 34492 | -2/Quarantine | Found Transdimensional Reconstructor 34512 | -2/Quarantine | Build established: Skirmisher 34653 | -2/Quarantine | Spotted Fortress 34686 | -2/Quarantine | Destroyed Fortress 34806 | -2/Quarantine | Discovered new exit (range 5) 34806 | -2/Quarantine | Discovered new exit (range 6) 34811 | -2/Quarantine | Identified exit to Section 7 34817 | -2/Quarantine | Identified exit to Protoforge 34846 | -2/Quarantine | Entered Section 7 34847 | -2/Section 7 | Detected hypermatrix surge 34847 | -2/Section 7 | Sensed 20 artifacts in vicinity 35035 | -2/Section 7 | Discovered new exit (range 19) 35082 | -2/Section 7 | Found Integrated Reactor 35082 | -2/Section 7 | Installed Integrated Reactor, increased core energy generation (+10) 35133 | -2/Section 7 | Identified exit to Access 35135 | -2/Section 7 | Entered Access 35135 | -1/Access | Evolved 2 slots: Power x1, Utility x1 35397 | -1/Access | Discovered new exit (range 24) 35431 | -1/Access | Spotted B-99 Colossus 35431 | -1/Access | Spotted B-99 Colossus 35436 | -1/Access | Build established: Generator-Skirmisher 35467 | -1/Access | Identified exit to Surface 35469 | *** | Heading to fleet! Last Messages --------------- 35455_ B-99 Colossus activates siege mode. 35455_ Penetrated by Slug. 35455_ Slug penetrates Sealed Heavy Doors. 35455_ Penetrated by Slug. 35455_ Slug penetrates Sealed Heavy Doors. 35455_ U-05 Engineer lays Concrete. 35457_ Penetrated by Slug. 35457_ Helical Railgun destroyed. 35457_ U-05 Engineer lays Concrete. 35457_ U-05 Engineer builds a Wall. 35458_ U-05 Engineer lays Concrete. 35458_ K-01 Serf collects debris. 35458_ Slug penetrates Sealed Heavy Doors. 35458_ Penetrated by Slug. 35458_ Slug penetrates Sealed Heavy Doors. 35459_ U-05 Engineer lays Concrete. 35460_ Slug penetrates Sealed Heavy Doors. 35462_ U-05 Engineer lays Concrete. 35465_ Slug penetrates Sealed Heavy Doors. 35467_ EXIT=IDENTIFIED: SURFACE Map ----- +----------------------------------------------------+ | ?????????????????????????????????????????????????? | | ?????????????????????????? ????? ? ? ????????????? | | ???????????????????? "? ? ? ???????? | | ??????????????????# ? ?" ? ######?#?##?##? | | ?????????????????#? ?G #########?###?# | | ????????????? ????# "? ? ############### | | ??????????????##??#? " ? ##############? | | ???????????????#### ? ? ############### | | ???????????T" ? ############### | | ???????????"? ? ?? ############### | | ?????????# ?? ?###########+#########?##### | | ?????????#?? ??##?## ? ######## | | ???????#?##? ?###### ######## | | ????????#??? ??#####? ######## | | ??????#???#??##?#### ######## | | ????????#?? #?##### ######## | | ???????#### ####### ######## " | | ???????#?## ??#?######################### """ | | ???? ????## #####?####################### """ | | ??????#?#?? #######"##################### " | | ??? ??#?#?# """T"""" """" # | | ??????###??? """ """" """" BB # | | ???? ? ??## " """""" """" BB "####+### | | ?????????## " " " """" | | ??? ? ? ?# " " "" """" %% | | ?? ?? ##? " " @" " | | ????? ? ??# " " " """" g% % | | ??????##### u " """""" """" %BB % | | ???? ? ##R " """" BB %# ^ | | ??????? ## ? " """" %% ! | | ????? ?? ?? #######"#################### |%* | | ???""? ?# u############################# ! !] " | | ????? ?? ##?R############################# " | | ????"? ?#? #### ^ gA A " | | ????????"#? #### #################### ##+###+#### | | ???????"??? ?#### #################### # | | ?????? "??# #### #################### # | | ???????Y??? ####/#################### # | | ????????"?#??# ################ # | | ????????"????# ################ # " | | ??????????? ?# ################ # """" | | ??????????# ?# " ################ # """"" | | ??????????? ??? """ ################ # """"" | | ?????????????# """ ################ # """" | | ?????????????# ??" ################ # " | | ???????????????? ################ # | | ???????????????? ################ # | | ???????????????????##?################ ##/######## | | ??????????????????##??################ ## ######## | | ????????????????????#?################ ## ######## | +----------------------------------------------------+ Best States ------------- Heat Dissipation 90 Energy Generation 103 Energy Capacity 1180 Matter Stores 300 Matter Capacity 300 Sight Range 16 Robot Scan Range 16 Terrain Scan Range 24 Terrain Scan Density 1010 Jamming Range 22 Armor Coverage 1200 Resistance: KI 30 Phase Shifting 15 Evasion (%) 55 Targeting Accuracy 12 Core Analysis 6 Recoil Reduction 6 Salvage Targeting 4 Offensive Hacking 14 Defensive Hacking 20 Authchip Count 1 Item Schematics ----------------- Neutron Missile Launcher | -2/Quarantine | Archive Cld. Plasma Rifle | -2/Quarantine | Archive Com. Particle Reactor | -2/Quarantine | Archive Exp. Armor Integrity Analyzer | -2/Quarantine | Archive Graviton Reactor | -2/Quarantine | Archive Cld. Antigrav System | -2/Quarantine | Archive Robot Schematics ------------------ T-07 Excavator | -2/Quarantine | Archive O-32 Director | -2/Quarantine | Archive Fabricated ------------ Nothing Repaired ---------- Nothing Alien Tech Used ----------------- Core Expander Core Reset Matrix Integrated Reactor Achievements -------------- Main Advantage Prison Break Project G-00 Revising The Future Revolutionary Research Total Silence We Are Legion Challenges ------------ None Game ------ Seed WeaponsTiamatShotgun Manual? 0 Play Time 03:15:03 Cumulative 32.7 hours Start 2025.10.13 @ 00:25:31 End 2025.10.16 @ 14:53:25 Sessions 18 Manual Loads 0 Difficulty Rogue Special Mode None Game No. 33 Rogue 33 Adventurer 0 Explorer 0 Win Type 2 Total 7 Types 1/0/3/0/1/0/2/0/0/0 Lore% 16 Gallery% 31 Achievement% 43 Wizard Run 0 Options --------- Layout 1 ASCII 0 Keyboard 0 Movement Arrows Keybinds 0 Fullscreen 2 Font 20/Terminus Map View 55x45 Zoom Use 0% Tactical HUD 1 Map Filters NONE Filters NONE Steam 0 RUN: ce303338-df6e-445f-9c55-5a69ab237754